Cogmind - Beta 13 @@@ ROGUE MODE // 2024.04.10 @ 09:01:36 Player: JunkerBernd Result: Destroyed by as-13320 with Assembled Rifle Performance ------------- Evolutions (0) 0 Regions Visited (4) 800 Robots Destroyed (19) 95 Value Destroyed (561) 561 Prototype IDs (5) 100 Alien Tech Used (0) 0 Bonus (300) 300 TOTAL SCORE: 1856 Bonus ------- Aligned with FarCom 300 Cogmind --------- Core Integrity 0/250 Matter 500/500 Energy 100/100 System Corruption 0% Temperature Cool (0) Movement Walking (260) Ox2 Location -9/Mines Parts ------- > --- POWER (1) -------- (None) > --- PROPULSION (2) --- Aluminum Leg Aluminum Leg > --- UTILITY (2) ------ High-capacity Storage Unit High-capacity Matter Pod > --- WEAPON (2) ------- Heavy Battle Rifle Longsword +1 > --- INVENTORY (20) --- Ion Engine Light Ion Engine Aluminum Leg Small Storage Unit Shield Generator Light Assault Rifle Light Assault Rifle Light Assault Rifle Light Assault Rifle Grenade Launcher Rocket Launcher Peak State ------------ > --- POWER ------------ Light Nuclear Core > --- PROPULSION ------- Light Treads Light Treads > --- UTILITY ---------- High-capacity Storage Unit Chronowheel > --- WEAPON ----------- Heavy Battle Rifle Longsword +1 > --- INVENTORY -------- Ion Engine Light Ion Engine Aluminum Leg Aluminum Leg Small Storage Unit High-capacity Matter Pod Shield Generator Light Assault Rifle Light Assault Rifle Light Assault Rifle Light Assault Rifle Grenade Launcher Rocket Launcher [Rating: 32] Favorites ----------- Power Light Nuclear Core Engine Ion Engine Power Core Light Nuclear Core Propulsion Light Treads Treads Light Treads Leg Aluminum Leg Utility High-capacity Matter Pod Device Chronowheel Storage High-capacity Matter Pod Weapon Light Assault Rifle Energy Gun EM Pulse Gun Ballistic Gun Light Assault Rifle Launcher Rocket Launcher Slashing Weapon Longsword +1 Build | -11 -10 -10 -10 -9 ------- Run | Yrd Mat Min Exi Min Slots Evolved . | . . . . . Power . | . . . . . Propulsion . | . . . . . Utility . | . . . . . Weapon . | . . . . . Parts Attached 23 | 6 7 5 3 2 Power 4 | 1 2 1 . . Engine 2 | 1 1 . . . Core 2 | . 1 1 . . Reactor . | . . . . . Propulsion 6 | 2 2 . . 2 Treads 4 | 2 2 . . . Leg 2 | . . . . 2 Wheel . | . . . . . Hover . | . . . . . Flight . | . . . . . Utility 5 | 1 1 1 2 . Device 1 | . . . 1 . Storage 4 | 1 1 1 1 . Processor . | . . . . . Hackware . | . . . . . Protection . | . . . . . Artifact . | . . . . . Weapon 8 | 2 2 3 1 . Energy Gun 1 | 1 . . . . Energy Cannon . | . . . . . Ballistic Gun 3 | 1 1 1 . . Ballistic Cannon . | . . . . . Launcher 3 | . 1 2 . . Special Weapon . | . . . . . Impact Weapon . | . . . . . Slashing Weapon 1 | . . . 1 . Piercing Weapon . | . . . . . Special Melee Weapon . | . . . . . Unidentified Prototypes 2 | . . . 2 . Parts Lost 5 | . 1 1 . 3 Power 2 | . . 1 . 1 Propulsion 2 | . . . . 2 Utility . | . . . . . Weapon 1 | . 1 . . . Highest Loss Streak 3 | . 1 1 . 3 To Critical Strikes . | . . . . . Average Slot Usage (%) 98 | . 96 99 99 93 Engine 2 | . 10 . . . Core 11 | . 3 13 14 10 Treads 26 | . 27 28 28 18 Storage 27 | . 25 28 27 28 Ballistic Gun 14 | . 20 11 14 14 Launcher 10 | . 6 16 8 . Slashing Weapon 2 | . . . 5 14 Naked Turns . | . . . . . Heaviest Build 57 | 11 18 57 57 56 Greatest Support 40 | 40 40 40 40 40 Greatest Overweight (x) 18 | . . 1 1 18 Average Overweight (x) . | . . . 1 1 Largest Inventory Capacity 20 | 8 8 20 20 20 Average Capacity 16 | 6 8 19 20 20 Most Carried 13 | 6 8 11 13 12 Average Carried 9 | 3 7 9 11 11 Final Capacity 20 | 8 8 20 20 20 Final Carried 12 | 6 7 11 12 11 Class Distribution -------------------- 100% | Mutant Dominant Class ---------------- Mutant | -10/Materials Mutant | -10/Mines Mutant | -10/Exiles Mutant | -9/Mines Resources | -11 -10 -10 -10 -9 ----------- Run | Yrd Mat Min Exi Min Matter Collected 588 | 252 164 105 . 67 Remotely . | . . . . . Salvage Created 481 | . 240 143 . 98 Parts 39 | . 29 6 . 4 Haulers Intercepted 1 | . 1 . . . Recyclers Shooed 2 | . 2 . . . Parts Field Recycled . | . . . . . Retrieved Matter . | . . . . . Parts Self-Destructed . | . . . . . Prevented . | . . . . . Kills | -11 -10 -10 -10 -9 ------- Run | Yrd Mat Min Exi Min Combat Hostiles Destroyed 16 | . 9 4 . 3 Guns 8 | . 2 3 . 3 AOE 8 | . 7 1 . . Classes Destroyed 6 | . 5 . . 1 Builder 2 | . 2 . . . Hauler 1 | . 1 . . . Watcher 1 | . 1 . . . Swarmer 3 | . 3 . . . Grunt 12 | . 6 4 . 2 Assembled 1 | . . . . 1 Best Kill Streak 3 | . 3 2 . 2 Combat Bots Only 3 | . 3 2 . 2 Max Kills in Single Turn 3 | . 3 1 . 1 Gunslinging . | . . . . . Exploded 3 | . 3 1 . . Melee . | . . . . . Uniques/NPCs Destroyed . | . . . . . Combat | -11 -10 -10 -10 -9 -------- Run | Yrd Mat Min Exi Min Hostile Shots Fired 77 | . 31 20 . 26 Missed 13 | . 5 2 . 6 Damage Taken 955 | . 368 324 . 263 Core 252 | . 90 83 . 79 Absorbed by Shields . | . . . . . Regen/Repaired (Parts) 50 | . 50 . . . Core Remaining (%) 100 | 100 . . . . Volleys Fired 45 | . 24 12 . 9 Largest 2 | . 2 2 . 1 Hottest 50 | . 50 50 . 33 Shots Fired 80 | . 47 24 . 9 Gun 64 | . 35 20 . 9 Cannon . | . . . . . Launcher 16 | . 12 4 . . Special . | . . . . . Kinetic 64 | . 35 20 . 9 Thermal . | . . . . . Explosive 16 | . 12 4 . . Electromagnetic . | . . . . . Robot Hit Streak 11 | . 5 9 . 11 Robot Miss Streak 3 | . 3 3 . 1 Penetration Max . | . . . . . Secondary Targets . | . . . . . Shots Hit Robots 56 | . 28 20 . 8 Core Hits 46 | . 31 11 . 4 Critical Kills . | . . . . . Critical Parts Destroyed . | . . . . . Critical Strikes . | . . . . . Melee Attacks . | . . . . . Impact . | . . . . . Slashing . | . . . . . Piercing . | . . . . . Sneak Attacks . | . . . . . Combat Hostiles . | . . . . . Follow-up Attacks . | . . . . . Damage Inflicted 1444 | 1 976 283 . 184 Guns 470 | . 155 131 . 184 Cannons . | . . . . . Explosions 973 | . 821 152 . . Melee . | . . . . . Ramming 1 | 1 . . . . Kinetic 470 | . 155 131 . 184 Thermal . | . . . . . Explosive 858 | . 706 152 . . Electromagnetic 115 | . 115 . . . Impact . | . . . . . Slashing . | . . . . . Piercing . | . . . . . Highest Corruption . | . . . . . Average Corruption . | . . . . . Corruption Purged . | . . . . . Corruption Blocked . | . . . . . Overload Shots . | . . . . . Overflow Damage 19 | . 19 . . . Projectiles . | . . . . . Explosions 19 | . 19 . . . Melee . | . . . . . Knockbacks . | . . . . . Impact . | . . . . . Kinetic . | . . . . . Secondary . | . . . . . Self-Inflicted Damage 167 | . 49 118 . . Shots 6 | . 2 4 . . Rammed 1 | 1 . . . . Targets Rammed 1 | 1 . . . . Kicked . | . . . . . Crushed . | . . . . . Highest Temperature 54 | . 33 32 . 54 Average Temperature 13 | . 10 15 . 18 Received Heat Transfer 524 | . 144 117 . 263 Siege Activations . | . . . . . Robots Corrupted . | . . . . . Combat Hostiles . | . . . . . Parts Fried . | . . . . . Impact Corruptions . | . . . . . Robots Melted . | . . . . . Combat Hostiles . | . . . . . Parts Melted . | . . . . . Heat Transferred . | . . . . . Parts Sabotaged . | . . . . . Parts Stolen . | . . . . . Parts Stripped . | . . . . . Power Chain Reactions . | . . . . . Alert | -11 -10 -10 -10 -9 ------- Run | Yrd Mat Min Exi Min Peak Influence 321 | . 321 175 . 30 Initial 67 | . . 67 . . Average 72 | . 170 40 . 7 Maximum Alert Level 1 | . 1 . . . Low Security (%) 89 | 100 64 100 . 100 Level 1 10 | . 35 . . . Level 2 . | . . . . . Level 3 . | . . . . . Level 4 . | . . . . . Level 5 . | . . . . . High Security . | . . . . . Max Security . | . . . . . Squads Dispatched 1 | . 1 . . . Investigation 1 | . 1 . . . Extermination . | . . . . . Reinforcement . | . . . . . Assault . | . . . . . Garrison . | . . . . . Intercept . | . . . . . Searches Triggered . | . . . . . Construction Impeded . | . . . . . Haulers Reinforced . | . . . . . Active Scanning Responses . | . . . . . Cargo Convoy Interrupts . | . . . . . Stealth | -11 -10 -10 -10 -9 --------- Run | Yrd Mat Min Exi Min Distress Signals . | . . . . . Communications Jammed . | . . . . . Distress Signals . | . . . . . Times Spotted 21 | . 13 4 . 4 Peak Tracking Total 3 | . 3 2 . 3 Tactical Retreats . | . . . . . Traps | -11 -10 -10 -10 -9 ------- Run | Yrd Mat Min Exi Min Traps Triggered 2 | . 2 . . . Indirectly . | . . . . . Trap Hack Attempts . | . . . . . Triggered . | . . . . . Disarmed . | . . . . . Reprogrammed . | . . . . . Reused . | . . . . . Traps Extracted . | . . . . . Installed . | . . . . . Triggered . | . . . . . Machines | -11 -10 -10 -10 -9 ---------- Run | Yrd Mat Min Exi Min Machines Disabled 3 | . 3 . . . Max in Single Turn 1 | . 1 . . . Machines Repaired . | . . . . . Machines Dismantled . | . . . . . Machines Sabotaged . | . . . . . Overloaded Fab Kills . | . . . . . Hacking | -11 -10 -10 -10 -9 --------- Run | Yrd Mat Min Exi Min Machines Accessed 6 | . 5 1 . . Terminals 4 | . 3 1 . . Fabricators . | . . . . . Repair Stations 1 | . 1 . . . Recycling Units 1 | . 1 . . . Scanalyzers . | . . . . . Garrison Access . | . . . . . Total Hacks 16 | . 14 2 . . Successful 9 | . 8 1 . . Failed 7 | . 6 1 . . Catastrophic 1 | . 1 . . . Database Lockouts . | . . . . . Manual 1 | . . . 1 . Terminals 10 | . 8 2 . . Fabricators . | . . . . . Repair Stations 3 | . 3 . . . Recycling Units 3 | . 3 . . . Scanalyzers . | . . . . . Garrison Access . | . . . . . Terminal Hacks 4 | . 3 1 . . Prototype ID Bank 1 | . 1 . . . Recycling Unit Index 1 | . 1 . . . Zone Layout 2 | . 1 1 . . Fabricator Hacks . | . . . . . Repair Station Hacks 2 | . 2 . . . Scan Component 1 | . 1 . . . Repair 1 | . 1 . . . Recycling Unit Hacks 3 | . 3 . . . Recycle Component 1 | . 1 . . . Process 1 | . 1 . . . Retrieve Matter 1 | . 1 . . . Scanalyzer . | . . . . . Garrison Access Hacks . | . . . . . Unauthorized Hacks . | . . . . . Terminals . | . . . . . Fabricators . | . . . . . Repair Stations . | . . . . . Recycling Units . | . . . . . Scanalyzers . | . . . . . Garrison Access . | . . . . . Data Cores Recovered . | . . . . . Used . | . . . . . Hacking Detections 3 | . 2 1 . . Full Trace Events . | . . . . . Feedback Events . | . . . . . Feedback Blocked . | . . . . . Robot Schematics Acquired . | . . . . . Robots Built . | . . . . . Authchips . | . . . . . Time . | . . . . . Total Robot Build Rating . | . . . . . Part Schematics Acquired . | . . . . . Parts Built . | . . . . . Authchips . | . . . . . Time . | . . . . . Total Part Build Rating . | . . . . . Parts Repaired 1 | . 1 . . . Time 26 | . 26 . . . Parts Recycled 1 | . 1 . . . Recycled Matter 173 | . 173 . . . Retrieved Matter 292 | . 292 . . . Retrieved Components . | . . . . . Parts Scanalyzed . | . . . . . Part Schematics Acquired . | . . . . . Parts Damaged . | . . . . . Bothacking | -11 -10 -10 -10 -9 ------------ Run | Yrd Mat Min Exi Min Used RIF Installer . | . . . . . Robots Hacked . | . . . . . Non-combat . | . . . . . Combat . | . . . . . Robot Hacks Applied . | . . . . . Relay Couplers Released . | . . . . . Fabnet Peak Effective % . | . . . . . Robots Rewired . | . . . . . Allies Hacked . | . . . . . Hacks Repelled . | . . . . . Allies | -11 -10 -10 -10 -9 -------- Run | Yrd Mat Min Exi Min Total Allies 2 | . . 2 . . Largest Group 2 | . . 2 2 . Highest-Rated Group 42 | . . 42 42 . Highest-Rated Ally 31 | . . 31 31 . Total Orders . | . . . . . Ally Attacks . | . . . . . Total Damage . | . . . . . Kills . | . . . . . Allies Corrupted . | . . . . . Allies Melted . | . . . . . Intel | -11 -10 -10 -10 -9 ------- Run | Yrd Mat Min Exi Min Robot Analysis Total . | . . . . . Derelict Logs Recovered 2 | . . 2 . . Drone Launches . | . . . . . Drone Recoveries . | . . . . . Exploration | -11 -10 -10 -10 -9 ------------- Run | Yrd Mat Min Exi Min Turns Passed 2974 | 88 683 1301 600 302 Spaces Moved 1288 | 48 353 536 239 112 Core 5 | 4 . . . 1 Treads 1257 | 44 353 536 239 85 Legs 26 | . . . . 26 Wheels . | . . . . . Hover . | . . . . . Flight . | . . . . . Fastest Speed 50 | 50 160 160 240 240 Average Speed 213 | 150 160 235 240 250 Slowest Speed 950 | 160 160 240 240 950 Overloaded Moves . | . . . . . Propulsion Burnouts . | . . . . . Robots Hopped . | . . . . . Cave-ins Triggered . | . . . . . Exploration Rate (%) 45 | 5 41 91 60 28 Regions Visited 4 Branch Regions 3 Pre-discovered Areas . | . . . . . Known Exits Taken . | . . . . . Unknown Exits Taken 4 | 1 1 1 1 . Scrap Searched 2 | . . 2 . . Spaces Dug . | . . . . . Terrain Destroyed 80 | . 46 34 . . Melee . | . . . . . Projectile . | . . . . . AOE 80 | . 46 34 . . Terrain Rammed . | . . . . . Walls Destroyed . | . . . . . Machines Disabled . | . . . . . Actions | -11 -10 -10 -10 -9 --------- Run | Yrd Mat Min Exi Min Total 1436 | 60 431 555 266 124 Wait 59 | . 37 . 22 . Move 1284 | 47 352 535 238 112 Hop . | . . . . . Pick Up 13 | 6 5 . 1 1 Fast Attach 17 | 6 6 4 1 . Attach 3 | . . . 1 2 Detach 6 | . 1 3 2 . Swap 3 | . 1 1 1 . Drop 5 | . 5 . . . Fire 45 | . 24 12 . 9 Melee . | . . . . . Ram . | . . . . . Kick . | . . . . . Crush 1 | 1 . . . . Escape Stasis . | . . . . . Rewire . | . . . . . Trap . | . . . . . Miscellaneous . | . . . . . Route ------- -11/Scrapyard -10/Materials (discovered 2 exits: [*Mat] / *Min) -10/Mines (discovered 3 exits: [*Mat x2] / *Exi) -10/Exiles -9/Mines History --------- Turn | Location | Event 2 | -11/Scrapyard | Discovered new exit (range 16) 89 | -11/Scrapyard | Entered Materials 204 | -10/Materials | Discovered new exit (range 13) 308 | -10/Materials | Build established: Mutant 313 | -10/Materials | Discovered new exit (range 11) 516 | -10/Materials | Repaired Lgt. Treads 772 | -10/Materials | Entered Mines 1025 | -10/Mines | Core integrity fell below 50% 1033 | -10/Mines | Discovered new exit (range 14) 1141 | -10/Mines | Learned Materials trap positions 1284 | -10/Mines | Received a Rocket Launcher from a helpful Derelict 1613 | -10/Mines | A weapon hastily lodged in a ceiling crevice suddenly fell to the ground 1896 | -10/Mines | Discovered new exit (range 8) 2033 | -10/Mines | Deemed a non-threat by the Exiles lab entrance 2035 | -10/Mines | Discovered new exit (range 5) 2073 | -10/Mines | Entered Exiles 2073 | -10/Exiles | Accompanied by 2 allies 2103 | -10/Exiles | Led the pair of lost Derelicts to a safe place 2153 | -10/Exiles | Met 8R-AWN 2194 | -10/Exiles | Met EX-HEX 2268 | -10/Exiles | Met EX-BIN 2295 | -10/Exiles | Aligned with FarCom system 2297 | -10/Exiles | Given EX-Vault access code 2352 | -10/Exiles | Opened EX-Vault 2383 | -10/Exiles | Found Prototype Slashing Weapon 2425 | -10/Exiles | Identified Longsword +1 2432 | -10/Exiles | Found Prototype Device 2432 | -10/Exiles | Identified Chronowheel 2432 | -10/Exiles | Activated Chronowheel 2488 | -10/Exiles | Warned to stay clear of 0b10 Research branches 2562 | -10/Exiles | Met EX-DEC 2646 | -10/Exiles | Discovered new exit (range 10) 2673 | -10/Exiles | Left Exiles lab with Longsword +1 2673 | -10/Exiles | Entered Mines 2694 | -9/Mines | Met a Derelict bent on vengeance 2823 | -9/Mines | Assembled infested the area 2886 | -9/Mines | Core integrity fell below 20% 2922 | -9/Mines | Lost 3 parts (1p2n) 2975 | -9/Mines | Destroyed by as-13320 with Assembled Rifle Last Messages --------------- K-01 Serf collects debris. K-01 Serf cleans the Pulverizer. K-01 Serf collects debris. K-01 Serf cleans the Pulverizer. K-01 Serf collects debris. K-01 Serf cleans the Pulverizer. K-01 Serf collects debris. T-07 Excavator is excavating. ALERT: Infestation in the mines, dispatching Demolisher response squad. Lgt. Treads destroyed. G-34 Mercenary destroyed. Lgt. Treads destroyed. Acquired 29 matter. Critical hit (Burn: +37). Lgt. Nuclear Core destroyed. Acquired 3 matter. G-47 Trooper destroyed. as-56540 destroyed. Acquired Aluminum Leg. Acquired 29 matter. Map ----- +----------------------------------------------------+ | ###??????????????????????????????????????????????? | | #??????????????????????????????????????????????? | | " #??????????????????????????????????????????????? | | " #??????????????????????????????????????????????? | | " #??????????????????????????????????????????????? | | " #??????????????????????????????????????????????? | | #???????????#??????????????????????????????????? | | #?????????? #?????????????????????????????????? | | #????????? ?????????????????????????????????? | | #???????? ##???????????????????????????????? | | ###????????? ####????????????????????????????? | | #???????????? ##???????????????????????????? | | #???????????? ##??????????????????????????? | | #????????????? ####???????????????????????? | | ??????????????# ##??????????????????????? | | ??????????????# #??????????????????????? | | ??????????????# #???????????????????????? | | ??????????????# #????????????????????????? | | ?????????###### #????????????????????????? | | ????????## #???##???????????????????? | | ???????## #???? ##??????????????????? | | #####??# %! #???? #??????????????????? | | # #### [ ## ###???# ##?????????????????? | | ## ! ### ###### ## ##?????????????? | | #?# t a#?????????????? | | ## ## #?# @ #?????????????????? | | #### #### #?######## ##?????????????????? | | #??## #??# %##?????????#####??????????????????? | | ????# #### #?????????????????????????????????? | | ???## ## ##????????????????????????????????? | | ???# ## #????????????????????????????????? | | ???# ### #????????????????????????????????? | | ??## #?## ##????????????????????????????????? | | ### ##??### #?????????????????????????????????? | | ##?????# #?????????????????????????????????? | | ##??????# #?????????????????????????????????? | | # ##???????# #?????????????????????????????????? | | #####????????#!#?????????????????????????????????? | | ?????????????#!#?????????????????????????????????? | | ?????????????#%#?????????????????????????????????? | | ?????????????#=#?????????????????????????????????? | | ?????????????# #?????????????????????????????????? | | ???????????? #?????????????????????????????????? | | ???????????# ###?????????????????????????????????? | | ???????????# ????????????????????????????????????? | | ??????????? ?????????????????????????????????????? | | ??????????#??????????????????????????????????????? | | ?????????????????????????????????????????????????? | | ?????????????????????????????????????????????????? | | ?????????????????????????????????????????????????? | +----------------------------------------------------+ Best States ------------- Heat Dissipation 25 Energy Generation 14 Energy Capacity 250 Matter Stores 500 Matter Capacity 500 Sight Range 16 Terrain Scan Density 10 Evasion (%) 40 Recoil Reduction 2 Item Schematics ----------------- None Robot Schematics ------------------ None Fabricated ------------ Nothing Alien Tech Used ----------------- None Achievements -------------- None Challenges ------------ None Game ------ Seed HoverEnhancedBox Manual? 0 Play Time 00:20:01 Cumulative 10.4 hours Start 2024.04.10 @ 08:42:14 End 2024.04.10 @ 09:01:36 Sessions 3 Manual Loads 0 Difficulty Rogue Special Mode None Game No. 20 Rogue 20 Adventurer 0 Explorer 0 Win Type - Total 0 Types 0/0/0/0/0/0/0/0/0 Lore% 15 Gallery% 12 Achievement% 16 Wizard Run 0 Options --------- Layout 0 ASCII 0 Keyboard 1 Movement Numpad Keybinds 0 Fullscreen 1 Font 18/SmallcapsGlow Map View 76x50 Zoom Use 0% Tactical HUD 0 Map Filters NONE Filters NONE Steam 1 RUN: e16b4b8e-8494-430b-8342-596462c5a429